bitfinex/quotes_SOLUSD_20220212
["timestamp","ask_amount","ask_price","bid_price","bid_amount"]
[1644640330624,5.026,97.399,97.339,1.43858248]
[1644640330625,7.41066791,97.405,97.35,0.024]
[1644640330825,5.029,97.398,97.35,0.024]
[1644640331649,14.88,97.4,97.35,0.024]
[1644640331849,36.51491617,97.389,97.35,0.024]
[1644640333350,5.024,97.388,97.35,0.024]
[1644640333750,15.416,97.38,97.35,0.024]
[1644640334651,36.51491617,97.389,97.35,0.024]
[1644640334851,36.51491617,97.389,97.358,1.43858248]
[1644640335051,36.51491617,97.389,97.36,1.43858248]
[1644640335555,36.51491617,97.389,97.364,1.43858248]
[1644640335754,458.5,97.396,97.365,1.43858248]
[1644640335951,458.5,97.399,97.382,1.43858248]
[1644640336150,6.06,97.41,97.382,1.43858248]
[1644640336151,458.5,97.409,97.382,1.43858248]
[1644640336351,458.5,97.409,97.397,1.43858248]
[1644640336554,6.06,97.41,97.407,1.43858248]
[1644640336752,6.06,97.41,97.36,0.024]
[1644640336952,6.06,97.41,97.406,1.43957346]
[1644640337154,6.06,97.41,97.358,4.3155173]
[1644640337155,6.06,97.41,97.401,1.43957346]
[1644640337652,6.06,97.41,97.399,1.43957346]
[1644640337854,6.06,97.41,97.404,1.43957346]
[1644640338454,6.06,97.41,97.406,1.43957346]
[1644640338654,6.06,97.41,97.405,1.43957346]
[1644640338854,6.06,97.41,97.357,5.134]
[1644640339055,6.06,97.41,97.408,1.4425623]
[1644640339256,6.06,97.41,97.357,5.134]
[1644640339456,6.06,97.41,97.36,0.024]
[1644640339656,6.06,97.41,97.357,9.4495173]
[1644640340458,6.06,97.41,97.409,1.44304329]
[1644640340663,6.06,97.41,97.37,0.024]
[1644640340860,30.2866,97.44,97.369,22.971263]
[1644640340861,4.835,97.434,97.369,22.971263]
[1644640341058,15.4066,97.44,97.422,1.44249207]
[1644640341261,4.739,97.459,97.422,1.44249207]
[1644640341469,14.88,97.47,97.424,1.44249207]
[1644640341661,458.5,97.469,97.43,1.44249207]
[1644640341862,42.35125864,97.468,97.431,1.44249207]
[1644640342062,42.35125864,97.468,97.436,1.44249207]
[1644640342260,15.4035,97.46,97.436,1.44249207]
[1644640343762,15.4035,97.46,97.434,1.44249207]
[1644640343961,15.4035,97.46,97.4,1.6964822]
[1644640343962,54.0,97.459,97.4,1.6964822]
[1644640344162,15.4084,97.44,97.4,1.6964822]
[1644640344364,458.5,97.429,97.4,1.6724822]
[1644640344563,5.024,97.428,97.4,1.6724822]
[1644640344963,44.98467303,97.427,97.4,1.6724822]
[1644640348268,5.024,97.428,97.4,1.6724822]
[1644640348466,458.5,97.43,97.4,1.6724822]
[1644640348666,458.5,97.448,97.4,1.6724822]
[1644640348867,5.023,97.447,97.4,1.6724822]
[1644640349268,36.95781199,97.446,97.4,1.6724822]
[1644640349568,5.023,97.445,97.4,1.6724822]
[1644640349988,36.95781199,97.446,97.4,1.6724822]
[1644640353875,5.025,97.445,97.4,1.6724822]
[1644640355778,36.95781199,97.446,97.4,1.6724822]
[1644640356779,5.025,97.445,97.4,1.6724822]
[1644640359104,36.95781199,97.446,97.4,1.6724822]
[1644640359604,5.026,97.445,97.4,1.6724822]
[1644640365817,15.4056,97.44,97.4,1.6724822]
[1644640366017,5.024,97.439,97.4,1.6724822]
[1644640366217,15.4056,97.44,97.4,1.6724822]
[1644640370821,36.95781199,97.446,97.4,1.6724822]
[1644640371826,458.5,97.427,97.4,1.6724822]
[1644640372025,463.526,97.445,97.4,1.6724822]
[1644640372223,5.011,97.426,97.4,1.6724822]
[1644640372424,458.5,97.445,97.4,1.6724822]
[1644640372623,4.984,97.444,97.4,1.6724822]
[1644640372825,458.5,97.427,97.4,1.6724822]
[1644640373026,43.67453301,97.426,97.4,1.6724822]
[1644640374328,458.5,97.425,97.4,1.6724822]
[1644640378129,5.024,97.424,97.4,1.6724822]
[1644640378331,15.4085,97.42,97.4,1.6724822]
[1644640384234,458.5,97.402,97.4,1.6724822]
[1644640384435,43.67453301,97.426,97.4,1.6724822]
[1644640384436,15.4107,97.41,97.4,1.6724822]
[1644640384636,39.72664865,97.401,97.4,1.6724822]
[1644640385534,458.5,97.402,97.4,1.6724822]
[1644640385734,458.5,97.409,97.4,1.6724822]
[1644640386534,499.73161254,97.409,97.4,1.6724822]
[1644640388137,458.5,97.409,97.4,1.6724822]
[1644640390938,458.5,97.411,97.4,1.6724822]
[1644640391961,458.5,97.419,97.4,1.6724822]
[1644640392259,458.5,97.438,97.401,7.51566791]
[1644640392460,458.5,97.476,97.401,5.132]
[1644640392662,5.027,97.475,97.402,2.38366791]
[1644640392859,44.11322723,97.474,97.403,5.131]
[1644640393059,458.5,97.43,97.403,5.131]
[1644640393260,40.37141027,97.448,97.404,2.38366791]
[1644640393261,458.5,97.447,97.404,2.38366791]
[1644640393661,458.5,97.447,97.405,5.132]
[1644640394263,5.033,97.446,97.4,1.6964822]
[1644640394463,458.5,97.427,97.4,1.6724822]
[1644640394663,458.5,97.442,97.4,1.6724822]
[1644640394865,458.5,97.446,97.401,5.132]
[1644640395069,40.37141027,97.448,97.401,5.132]
[1644640395070,458.5,97.447,97.401,7.51566791]
[1644640395268,458.5,97.447,97.401,5.132]
[1644640395565,458.5,97.447,97.402,2.38366791]
[1644640395764,458.5,97.447,97.402,27.37716791]
[1644640396365,458.5,97.447,97.403,2.38366791]
[1644640396566,458.5,97.455,97.403,2.38366791]
[1644640396765,458.5,97.485,97.404,19.12818285]
[1644640396965,458.5,97.498,97.404,19.12818285]
[1644640397166,5.016,97.498,97.405,31.21456791]
[1644640397366,36.50854918,97.477,97.41,14.88]
[1644640397566,495.00854918,97.477,97.43,15.3937]
[1644640398166,495.00854918,97.477,97.431,7.73796645]
[1644640398567,495.00854918,97.477,97.432,12.86796645]
[1644640398769,495.00854918,97.477,97.43,15.3937]
[1644640398770,495.00854918,97.477,97.433,5.35429854]
[1644640398967,495.00854918,97.477,97.434,5.13]
[1644640399169,495.00854918,97.477,97.432,5.13]
[1644640399370,5.059,97.476,97.431,5.13]
[1644640399571,458.5,97.448,97.431,5.13]
[1644640399772,35.60847808,97.462,97.431,5.13]
[1644640400172,458.5,97.475,97.431,5.13]
[1644640400374,29.9515,97.499,97.431,5.13]
[1644640400375,458.5,97.498,97.431,5.13]
[1644640400572,458.5,97.498,97.432,22.989]
[1644640400573,5.03,97.497,97.432,22.989]
[1644640400772,458.5,97.457,97.432,22.989]
[1644640400971,458.5,97.498,97.432,22.989]
[1644640401174,4.966,97.497,97.432,22.989]
[1644640401373,46.53085368,97.496,97.432,22.989]
[1644640401573,458.5,97.456,97.432,22.989]
[1644640401874,458.5,97.494,97.432,22.989]
[1644640402073,4.902,97.493,97.432,22.989]
[1644640402272,458.5,97.456,97.432,22.989]
[1644640402476,458.5,97.492,97.432,22.989]
[1644640402675,4.838,97.492,97.432,22.989]
[1644640402876,4.806,97.493,97.432,22.989]
[1644640403074,463.306,97.493,97.432,22.989]
[1644640403274,15.3976,97.49,97.432,22.989]
[1644640403474,458.5,97.439,97.432,22.989]
[1644640403673,15.3976,97.49,97.41,5.13]
[1644640403674,458.5,97.436,97.41,5.13]
[1644640403875,482.0118,97.489,97.415,5.132]
[1644640404174,15.3992,97.48,97.467,1.6724822]
[1644640404374,21.4592,97.48,97.467,1.6724822]
[1644640404777,458.5,97.472,97.406,22.9507]
[1644640404974,458.5,97.479,97.406,22.9507]
[1644640405378,48.41743771,97.478,97.406,22.9507]
[1644640405574,72.86783771,97.478,97.406,22.9507]
[1644640405776,15.4008,97.47,97.406,22.9507]
[1644640406475,48.41743771,97.478,97.41,15.3992]
[1644640406675,458.5,97.434,97.411,5.34409184]
[1644640406875,38.1591455,97.461,97.439,20.38321088]
[1644640407776,496.6591455,97.461,97.439,20.38321088]
[1644640412481,458.5,97.461,97.439,20.38321088]
[1644640412684,5.025,97.469,97.439,20.38321088]
[1644640412685,458.5,97.469,97.439,20.38321088]
[1644640412983,458.5,97.479,97.439,20.38321088]
[1644640413181,463.527,97.487,97.439,20.38321088]
[1644640413482,43.94404773,97.486,97.439,20.38321088]
[1644640413681,458.5,97.45,97.439,20.38321088]
[1644640413880,458.5,97.485,97.439,20.38321088]
[1644640414081,458.5,97.485,97.44,22.7691]
[1644640414282,5.027,97.484,97.44,22.7691]
[1644640414481,458.5,97.449,97.44,22.7691]
[1644640414681,6.06,97.45,97.439,20.38321088]
[1644640414882,463.529,97.483,97.44,22.7691]
[1644640416081,458.5,97.483,97.44,22.7691]
[1644640416481,458.5,97.508,97.441,2.38366791]
[1644640416683,458.5,97.487,97.441,2.38366791]
[1644640416882,46.29417108,97.524,97.442,27.85461651]
[1644640417082,458.5,97.487,97.46,15.3901]
[1644640417284,458.5,97.508,97.46,15.3901]
[1644640417585,458.5,97.508,97.461,2.38366791]
[1644640418883,458.5,97.508,97.47,15.389]
[1644640419084,458.5,97.508,97.471,5.128]
[1644640419485,458.5,97.508,97.47,15.389]
[1644640419685,458.5,97.487,97.454,24.0122]
[1644640419885,5.026,97.507,97.454,24.0122]
[1644640420186,463.537,97.529,97.454,24.0122]
[1644640420385,46.31632394,97.505,97.454,24.0122]
[1644640420588,5.058,97.504,97.454,24.0122]
[1644640420891,458.5,97.468,97.46,15.3912]
[1644640421088,458.5,97.504,97.46,15.3912]
[1644640421286,458.5,97.504,97.461,5.13]
[1644640424087,458.5,97.527,97.461,5.13]
[1644640424288,5.025,97.526,97.462,24.7894]
[1644640424487,458.5,97.475,97.463,5.128]
[1644640424688,458.5,97.525,97.463,5.128]
[1644640424888,42.4278115,97.524,97.464,24.7894]
[1644640425088,458.5,97.475,97.465,5.128]
[1644640425288,22.5153,97.528,97.465,5.128]
[1644640425289,458.5,97.503,97.465,5.128]
[1644640425488,4.812,97.522,97.465,5.128]
[1644640425688,458.5,97.524,97.465,5.128]
[1644640425887,4.726,97.523,97.465,5.128]
[1644640426090,458.5,97.474,97.465,5.128]
[1644640426289,4.64,97.522,97.465,5.128]
[1644640426489,458.5,97.474,97.465,5.128]
[1644640426690,458.5,97.483,97.465,5.128]
[1644640427489,458.5,97.483,97.461,24.2998]
[1644640428190,458.5,97.524,97.462,5.128]
[1644640428390,458.5,97.524,97.446,27.78047033]
[1644640428593,458.5,97.524,97.447,5.34596884]
[1644640428793,35.23947769,97.523,97.46,15.3912]
[1644640428991,458.5,97.488,97.461,30.0262]
[1644640429190,458.5,97.504,97.461,32.40986791]
[1644640429590,458.5,97.504,97.462,2.38366791]
[1644640429790,458.5,97.504,97.463,5.128]
[1644640430094,458.5,97.504,97.464,7.72741238]
[1644640430290,458.5,97.524,97.464,7.72741238]
[1644640430491,458.5,97.524,97.465,7.51166791]
[1644640430692,458.5,97.524,97.465,2.38366791]
[1644640430892,458.5,97.524,97.47,15.3895]
[1644640431100,37.39982505,97.523,97.47,15.3895]
[1644640431291,37.39982505,97.523,97.471,7.51166791]
[1644640431493,458.5,97.494,97.471,7.51166791]
[1644640431692,45.37963584,97.508,97.472,2.38366791]
[1644640431893,458.5,97.494,97.473,5.128]
[1644640432093,458.5,97.507,97.473,5.128]
[1644640432492,458.5,97.507,97.47,15.3895]
[1644640432493,458.5,97.507,97.471,5.128]
[1644640433393,458.5,97.507,97.472,2.38366791]
[1644640433598,458.5,97.507,97.48,15.3882]
[1644640433795,458.5,97.507,97.481,5.128]
[1644640435694,0.0385262,97.53,97.481,5.128]
[1644640435896,458.5,97.538,97.482,23.2058]
[1644640436098,36.18091594,97.537,97.482,23.2058]
[1644640436698,494.68091594,97.537,97.482,23.2058]
[1644640436895,494.68091594,97.537,97.483,5.127]
[1644640438496,5.024,97.536,97.483,5.127]
[1644640438701,463.524,97.536,97.483,5.127]
[1644640444112,463.524,97.536,97.49,15.3867]
[1644640444311,463.524,97.536,97.491,10.47081046]
[1644640444510,458.5,97.536,97.492,5.34381046]
[1644640444710,458.5,97.536,97.493,5.127]
[1644640444911,458.5,97.539,97.493,5.127]
[1644640445110,458.5,97.539,97.494,5.34381046]
[1644640445309,34.87857575,97.548,97.495,23.1101]
[1644640445510,458.5,97.516,97.496,5.34381046]
[1644640445711,458.5,97.547,97.5,15.385]
[1644640446412,458.5,97.547,97.5,17.76866791]
[1644640447311,458.5,97.547,97.51,15.3814]
[1644640447532,458.5,97.549,97.511,5.126]
[1644640447734,458.5,97.549,97.501,5.126]
[1644640448534,458.5,97.549,97.52,15.3814]
[1644640451338,458.5,97.558,97.52,15.3814]
[1644640451540,458.5,97.558,97.521,2.38366791]
[1644640451740,46.49037801,97.573,97.52,15.3814]
[1644640451938,46.49037801,97.573,97.521,22.8769]
[1644640452138,504.99037801,97.573,97.521,22.8769]
[1644640453239,504.99037801,97.573,97.522,5.125]
[1644640453641,504.99037801,97.573,97.53,15.3798]
[1644640453841,504.99037801,97.573,97.531,5.125]
[1644640454841,504.99037801,97.573,97.53,15.3798]
[1644640455444,458.5,97.573,97.53,15.3798]
[1644640455845,458.5,97.578,97.53,17.76346791]
[1644640456049,458.5,97.579,97.53,17.76346791]
[1644640456447,47.13235887,97.578,97.53,17.76346791]
[1644640456650,505.63235887,97.578,97.53,17.76346791]
[1644640457749,505.63235887,97.578,97.53,15.3798]
[1644640457948,5.033,97.577,97.53,15.3798]
[1644640458148,463.533,97.577,97.53,15.3798]
[1644640459550,458.5,97.577,97.531,7.50866791]
[1644640459750,458.5,97.579,97.54,15.3787]
[1644640460152,458.5,97.579,97.541,5.125]
[1644640460351,0.0385262,97.59,97.541,5.125]
[1644640460352,34.53234969,97.588,97.541,5.125]
[1644640461153,34.53234969,97.588,97.542,23.3092]
[1644640461357,493.03234969,97.588,97.542,23.3092]
[1644640461659,5.024,97.587,97.542,23.3092]
[1644640461855,5.024,97.587,97.511,5.124]
[1644640461856,463.524,97.587,97.511,5.124]
[1644640462056,0.0385262,97.58,97.512,22.9649]
[1644640462257,5.027,97.579,97.512,22.9649]
[1644640462457,463.527,97.579,97.513,5.125]
[1644640462658,458.5,97.579,97.513,5.125]
[1644640462858,458.5,97.579,97.52,15.3817]
[1644640463058,458.5,97.579,97.521,5.125]
[1644640463259,458.5,97.579,97.52,2.38366791]
[1644640463660,458.5,97.579,97.522,2.38366791]
[1644640463860,458.5,97.579,97.523,24.8938]
[1644640464060,458.5,97.579,97.532,1.43294223]
[1644640464262,458.5,97.579,97.533,6.55794223]
[1644640464459,0.0385262,97.58,97.534,22.9305]
[1644640464659,458.5,97.58,97.534,22.9305]
[1644640464863,458.5,97.58,97.535,5.125]
[1644640465064,458.5,97.587,97.535,5.125]
[1644640466787,458.5,97.587,97.54,15.3788]
[1644640467887,458.5,97.589,97.541,5.124]
[1644640468688,45.6040638,97.588,97.541,5.124]
[1644640470092,4.976,97.587,97.54,15.3788]
[1644640471295,4.976,97.587,97.534,22.9305]
[1644640471493,45.6040638,97.588,97.534,22.9305]
[1644640471697,504.1040638,97.588,97.535,1.43294223]
[1644640471995,504.1040638,97.588,97.534,22.9305]
[1644640471996,504.1040638,97.588,97.538,1.43294223]
[1644640472493,504.1040638,97.588,97.537,1.43294223]
[1644640472893,5.023,97.587,97.531,1.43294223]
[1644640473096,463.523,97.587,97.53,5.124]
[1644640473895,15.3832,97.58,97.527,1.43294223]
[1644640474194,28.8079,97.579,97.526,1.43294223]
[1644640474597,487.3079,97.579,97.526,1.43294223]
[1644640475096,487.3079,97.579,97.53,1.43294223]
[1644640475999,487.3079,97.579,97.528,1.43294223]
[1644640477201,487.3079,97.579,97.53,1.43294223]
[1644640477399,487.3079,97.579,97.531,1.43294223]
[1644640477799,487.3079,97.579,97.532,5.125]
[1644640477997,487.3079,97.579,97.531,1.43294223]
[1644640478698,487.3079,97.579,97.532,1.43294223]
[1644640479098,482.2829,97.579,97.533,5.125]
[1644640480398,482.2829,97.579,97.533,6.55794223]
[1644640480600,482.2829,97.579,97.533,1.43294223]
[1644640480801,5.026,97.578,97.533,1.43294223]
[1644640481002,458.5,97.578,97.537,1.43294223]
[1644640481204,458.5,97.578,97.542,1.43294223]
[1644640481699,458.5,97.578,97.543,1.43294223]
[1644640481901,458.5,97.578,97.542,1.43294223]
[1644640482102,458.5,97.579,97.542,1.43294223]
[1644640482305,458.5,97.587,97.542,1.43294223]
[1644640482501,458.5,97.587,97.545,1.43294223]
[1644640482699,458.5,97.587,97.544,1.43294223]
[1644640482899,458.5,97.587,97.547,1.43294223]
[1644640483100,458.5,97.587,97.544,1.43294223]
[1644640483300,458.5,97.587,97.545,5.124]
[1644640483503,458.5,97.587,97.546,1.43294223]
[1644640483902,458.5,97.587,97.547,5.124]
[1644640484503,458.5,97.587,97.548,1.43294223]
[1644640485002,458.5,97.587,97.549,5.124]
[1644640485804,458.5,97.587,97.549,6.55694223]
[1644640486003,458.5,97.587,97.549,1.43294223]
[1644640487005,458.5,97.598,97.552,1.43294223]
[1644640487206,458.5,97.598,97.562,1.43294223]
[1644640487409,48.9131,97.637,97.56,1.43294223]
[1644640487410,0.0385262,97.6,97.56,1.43294223]
[1644640487705,463.538,97.636,97.56,1.43294223]
[1644640487706,0.0385262,97.62,97.56,1.43294223]
[1644640487906,458.5385262,97.62,97.561,1.43294223]
[1644640488105,5.058,97.619,97.562,24.01744223]
[1644640488305,5.058,97.619,97.563,1.43294223]
[1644640488506,463.558,97.619,97.563,1.43294223]
[1644640488706,463.558,97.619,97.566,1.43294223]
[1644640489305,463.558,97.619,97.565,1.43294223]
[1644640489508,463.558,97.619,97.563,6.55594223]
[1644640489706,463.558,97.619,97.564,1.43294223]
[1644640489907,463.558,97.619,97.57,15.374]
[1644640490706,463.558,97.619,97.563,6.55594223]
[1644640490906,458.5,97.619,97.565,5.123]
[1644640491105,458.5,97.619,97.564,5.123]
[1644640492009,4.991,97.618,97.564,5.123]
[1644640492212,463.491,97.618,97.563,5.123]
[1644640492415,463.491,97.618,97.56,15.3756]
[1644640492710,463.491,97.618,97.557,1.43294223]
[1644640492915,0.0385262,97.61,97.555,1.43294223]
[1644640493113,34.54846888,97.608,97.555,1.43294223]
[1644640493311,493.04846888,97.608,97.556,5.123]
[1644640493713,493.04846888,97.608,97.559,1.43294223]
[1644640493913,493.04846888,97.608,97.558,1.43294223]
[1644640494514,493.04846888,97.608,97.557,25.25394223]
[1644640494712,493.04846888,97.608,97.559,1.43294223]
[1644640494913,493.04846888,97.608,97.56,5.123]
[1644640495314,5.025,97.607,97.558,1.43294223]
[1644640495516,463.525,97.607,97.558,1.43294223]
[1644640495915,463.525,97.607,97.557,23.821]
[1644640496319,458.5,97.607,97.557,23.821]
[1644640497415,458.5,97.607,97.554,1.43294223]
[1644640497715,458.5,97.607,97.551,1.43294223]
[1644640497917,458.5,97.607,97.55,1.43294223]
[1644640498120,458.5,97.607,97.548,1.43294223]
[1644640498520,458.5,97.607,97.54,15.3787]
[1644640498521,458.5,97.607,97.544,1.43294223]
[1644640498721,458.5,97.607,97.541,1.43294223]
[1644640498919,15.3799,97.6,97.541,1.43294223]
[1644640499121,5.025,97.599,97.541,1.43294223]
[1644640499321,5.025,97.599,97.542,1.43294223]
[1644640499520,463.525,97.599,97.542,1.43294223]
[1644640499924,463.525,97.599,97.541,1.43294223]
[1644640500319,463.525,97.599,97.531,29.4999]
[1644640500320,43.15343059,97.589,97.54,1.43294223]
[1644640500520,43.15343059,97.589,97.539,1.43294223]
[1644640500521,4.993,97.588,97.539,1.43294223]
[1644640500724,463.493,97.588,97.541,5.124]
[1644640500921,463.493,97.588,97.54,6.55694223]
[1644640501123,463.493,97.588,97.54,1.43294223]
[1644640501322,463.493,97.588,97.541,1.43294223]
[1644640501521,5.024,97.587,97.54,1.43294223]
[1644640501720,463.524,97.587,97.54,1.43294223]
[1644640501920,458.5,97.587,97.54,1.43294223]
[1644640502122,458.5,97.587,97.546,1.43294223]
[1644640502321,458.5,97.588,97.546,1.43294223]
[1644640503023,458.5,97.588,97.547,1.43294223]
[1644640503225,458.5,97.588,97.546,1.43294223]
[1644640503422,458.5,97.588,97.547,1.43294223]
[1644640504223,458.5,97.588,97.546,1.43294223]
[1644640504423,458.5,97.588,97.547,1.43294223]
[1644640504623,4.995,97.587,97.547,1.43294223]
[1644640504824,463.495,97.587,97.544,1.43294223]
[1644640505024,458.5,97.587,97.543,1.43294223]
[1644640505225,4.933,97.586,97.541,1.43294223]
[1644640505426,458.5,97.586,97.543,1.43294223]
[1644640505625,458.5,97.586,97.542,1.43294223]
[1644640505829,458.5,97.587,97.543,5.124]
[1644640506026,458.5,97.587,97.543,6.55694223]
[1644640506226,458.5,97.587,97.543,1.43294223]
[1644640507228,458.5,97.587,97.544,1.43294223]
[1644640507428,458.5,97.587,97.545,5.124]
[1644640507644,458.5,97.587,97.545,6.55694223]
[1644640507847,458.5,97.587,97.545,1.43294223]
[1644640508248,458.5,97.587,97.546,5.124]
[1644640508449,458.5,97.587,97.546,6.55694223]
[1644640508647,458.5,97.587,97.546,1.43294223]
[1644640508846,458.5,97.587,97.547,5.124]
[1644640509047,458.5,97.588,97.547,5.124]
[1644640509447,458.5,97.588,97.548,1.43294223]
[1644640509747,458.5,97.588,97.547,1.43294223]
[1644640509949,458.5,97.588,97.548,6.55694223]
[1644640510148,458.5,97.588,97.549,1.43294223]
[1644640510953,458.5,97.588,97.562,1.43294223]
[1644640511450,458.5,97.588,97.565,1.43294223]
[1644640511651,458.5,97.588,97.567,1.43294223]
[1644640511851,458.5,97.606,97.566,1.43294223]
[1644640512051,458.5,97.606,97.567,1.43294223]
[1644640512250,47.32673798,97.605,97.566,1.43294223]
[1644640513152,47.32673798,97.605,97.565,1.43294223]
[1644640513351,505.82673798,97.605,97.565,1.43294223]
[1644640514355,505.82673798,97.605,97.568,1.43294223]
[1644640514655,458.5,97.605,97.568,1.43294223]
[1644640515453,458.5,97.605,97.569,5.123]
[1644640515653,5.017,97.604,97.571,1.43294223]
[1644640515854,5.017,97.604,97.564,1.43294223]
[1644640516253,5.017,97.604,97.563,1.43294223]
[1644640516454,5.017,97.604,97.562,1.43294223]
[1644640516754,463.517,97.604,97.561,1.43294223]
[1644640517355,463.517,97.604,97.56,1.43294223]
[1644640517755,463.517,97.604,97.558,1.43294223]
[1644640518257,463.517,97.604,97.559,1.43294223]
[1644640518660,15.3803,97.6,97.559,1.43294223]
[1644640518857,15.3803,97.6,97.551,5.124]
[1644640518858,5.024,97.599,97.551,5.124]
[1644640519258,463.524,97.599,97.551,5.124]
[1644640519459,458.5,97.599,97.545,1.43294223]
[1644640519663,0.03931111,97.59,97.544,1.43294223]
[1644640519862,42.06023477,97.589,97.544,1.43294223]
[1644640520062,42.06023477,97.589,97.553,1.43294223]
[1644640520063,500.56023477,97.589,97.553,1.43294223]
[1644640520265,0.03931111,97.58,97.553,1.43294223]
[1644640520465,458.5,97.58,97.557,1.43294223]
[1644640520665,0.03931111,97.58,97.555,1.43294223]
[1644640520862,458.5,97.588,97.555,1.43294223]
[1644640521063,458.5,97.588,97.556,5.124]
[1644640521267,458.5,97.588,97.556,1.43294223]
[1644640521866,5.027,97.587,97.551,1.43294223]
[1644640522066,463.527,97.587,97.549,1.43294223]
[1644640522366,458.5,97.587,97.547,1.43294223]
[1644640522565,5.024,97.586,97.547,1.43294223]
[1644640522765,458.5,97.586,97.548,5.124]
[1644640522965,458.5,97.586,97.513,5.09312791]
[1644640522966,0.03931111,97.58,97.55,1.43294223]
[1644640523165,458.5,97.588,97.551,1.43294223]
[1644640523366,458.5,97.588,97.554,1.43294223]
[1644640523666,458.5,97.588,97.56,1.43294223]
[1644640524066,458.5,97.609,97.561,6.55694223]
[1644640524268,0.03931111,97.59,97.568,1.43294223]
[1644640524469,458.5,97.59,97.569,1.43294223]
[1644640524668,0.03931111,97.6,97.567,1.43294223]
[1644640524967,0.03931111,97.6,97.542,29.3263]
[1644640524968,41.93926399,97.589,97.562,1.43294223]
[1644640525370,41.93926399,97.589,97.561,1.43294223]
[1644640525969,500.43926399,97.589,97.56,1.43294223]
[1644640526288,500.43926399,97.589,97.554,1.43294223]
[1644640526669,500.43926399,97.589,97.553,1.43294223]
[1644640526869,500.43926399,97.589,97.555,1.43294223]
[1644640527071,500.43926399,97.589,97.559,1.43294223]
[1644640527272,500.43926399,97.589,97.556,1.43294223]
[1644640527471,500.43926399,97.589,97.553,1.43294223]
[1644640527674,4.992,97.588,97.549,1.43294223]
[1644640527874,4.992,97.588,97.541,5.124]
[1644640527875,463.492,97.588,97.545,1.43294223]
[1644640528071,463.492,97.588,97.544,1.43294223]
[1644640528272,463.492,97.588,97.543,1.43294223]
[1644640528671,15.3834,97.58,97.547,1.43294223]
[1644640529074,15.3834,97.58,97.549,1.43294223]
[1644640529271,473.92271111,97.58,97.549,1.43294223]
[1644640529472,473.8834,97.58,97.548,1.43294223]
[1644640529674,473.92271111,97.58,97.548,1.43294223]
[1644640529873,473.8834,97.58,97.543,1.43294223]
[1644640530080,473.92271111,97.58,97.543,1.43294223]
[1644640530272,458.5,97.58,97.544,5.124]
[1644640530473,458.5,97.588,97.555,1.43294223]
[1644640530672,458.5,97.588,97.562,1.43294223]
[1644640530873,0.03931111,97.58,97.565,1.43294223]
[1644640531074,464.56,97.58,97.565,1.43294223]
[1644640531277,464.56,97.58,97.566,1.43294223]
[1644640531473,464.56,97.58,97.561,1.43294223]
[1644640532480,464.56,97.58,97.559,1.43294223]
[1644640532675,464.56,97.58,97.553,1.43294223]
[1644640532876,5.025,97.579,97.55,1.43294223]
[1644640533078,5.025,97.579,97.547,1.43294223]
[1644640533276,463.525,97.579,97.545,1.43294223]
[1644640533483,463.525,97.579,97.546,1.43294223]
[1644640533678,463.525,97.579,97.544,1.43294223]
[1644640533877,463.525,97.579,97.543,1.43294223]
[1644640534079,463.525,97.579,97.542,1.43294223]
[1644640534481,463.525,97.579,97.538,1.43294223]